bitfinex/quotes_BTCUSD_20240617
["timestamp","ask_amount","ask_price","bid_price","bid_amount"]
[1718649038025,0.00419894,67053.0,67052.0,2.53409448]
[1718649038230,0.00419894,67053.0,67052.0,2.52009448]
[1718649038469,0.00419894,67053.0,67052.0,2.54809448]
[1718649038669,0.00419894,67053.0,67052.0,2.54810179]
[1718649038878,0.00419894,67053.0,67052.0,2.56568731]
[1718649039079,0.00419894,67053.0,67052.0,3.09837679]
[1718649039296,0.00419894,67053.0,67052.0,3.43079972]
[1718649039900,0.00419894,67053.0,67052.0,3.13252472]
[1718649040096,0.00419894,67053.0,67052.0,3.11852472]
[1718649040299,0.00419894,67053.0,67052.0,3.41679972]
[1718649040652,0.00419894,67053.0,67052.0,3.43079972]
[1718649041093,0.00419894,67053.0,67052.0,3.40279972]
[1718649041292,0.00419894,67053.0,67052.0,3.41679972]
[1718649041914,0.00419894,67053.0,67052.0,3.40279972]
[1718649042250,0.00419894,67053.0,67052.0,3.41679972]
[1718649042879,0.00419894,67053.0,67052.0,3.41676289]
[1718649043299,0.00856,67055.0,67054.0,2.452968]
[1718649043456,0.00856,67055.0,67054.0,3.63617705]
[1718649043658,0.00856,67055.0,67054.0,3.62911164]
[1718649044278,0.00856,67055.0,67054.0,3.62910534]
[1718649044480,0.00856,67055.0,67054.0,3.64310534]
[1718649045113,0.00856,67055.0,67054.0,3.34483834]
[1718649045311,0.00856,67055.0,67054.0,3.02483834]
[1718649045516,0.00856,67055.0,67054.0,3.20583834]
[1718649045770,0.00856,67055.0,67054.0,2.58703036]
[1718649046013,0.00856,67055.0,67054.0,2.89642837]
[1718649047414,0.00856,67055.0,67054.0,2.92800798]
[1718649047625,0.00856,67055.0,67054.0,2.94200798]
[1718649047864,0.00856,67055.0,67054.0,2.36174098]
[1718649048091,0.00856,67055.0,67054.0,2.57974156]
[1718649048300,0.00856,67055.0,67054.0,0.3062108]
[1718649048522,0.00856,67055.0,67054.0,0.4553438]
[1718649048936,0.00856,67055.0,67054.0,0.7536108]
[1718649049143,0.00856,67055.0,67054.0,0.15348192]
[1718649049348,0.00856,67055.0,67054.0,0.01572221]
[1718649049602,0.00856,67055.0,67054.0,1.58013467]
[1718649049815,0.00856,67055.0,67054.0,2.78075836]
[1718649050038,0.00856,67055.0,67054.0,2.95237214]
[1718649050241,0.00856,67055.0,67054.0,3.26173384]
[1718649050385,0.00856,67055.0,67054.0,3.68300084]
[1718649050592,0.00856,67055.0,67054.0,3.79246487]
[1718649050795,0.00856,67062.0,67061.0,1.862292]
[1718649051024,0.00856,67062.0,67061.0,3.10854309]
[1718649051201,0.00856,67062.0,67061.0,3.41961385]
[1718649051403,0.00856,67062.0,67061.0,3.48527389]
[1718649051839,0.00856,67062.0,67061.0,3.41961385]
[1718649052371,0.00856,67062.0,67061.0,3.46335033]
[1718649053312,0.00856,67062.0,67061.0,3.41961385]
[1718649053736,0.00856,67062.0,67061.0,3.46333047]
[1718649053944,0.00856,67062.0,67061.0,3.46331228]
[1718649054157,0.00856,67062.0,67061.0,3.71781715]
[1718649054360,0.00856,67062.0,67061.0,3.81927742]
[1718649054555,0.00856,67062.0,67061.0,3.93608387]
[1718649054756,0.00856,67062.0,67061.0,3.92208387]
[1718649055185,0.00856,67062.0,67061.0,3.52102754]
[1718649055510,0.00856,67062.0,67061.0,3.44758215]
[1718649056288,0.00856,67062.0,67061.0,3.51313145]
[1718649056869,0.00856,67062.0,67061.0,3.81137414]
[1718649057223,0.00856,67062.0,67061.0,3.74580069]
[1718649057409,0.00856,67062.0,67061.0,4.02385573]
[1718649057615,0.00856,67076.0,67072.0,1.18628]
[1718649057945,0.00856,67076.0,67072.0,3.11003029]
[1718649058087,0.00856,67076.0,67075.0,1.265605]
[1718649058287,0.0091514,67081.0,67075.0,1.265605]
[1718649058288,0.0091514,67081.0,67078.0,1.5223]
[1718649058523,0.0091514,67081.0,67078.0,2.21587005]
[1718649058689,0.0091514,67081.0,67078.0,3.09778229]
[1718649059095,0.00611598,67091.0,67090.0,1.063374]
[1718649059304,0.00611598,67091.0,67090.0,1.78140288]
[1718649059505,0.00611598,67091.0,67090.0,1.76308405]
[1718649059892,0.00611598,67091.0,67090.0,1.21778405]
[1718649060096,0.00611598,67091.0,67090.0,0.30346305]
[1718649060291,0.00611598,67091.0,67090.0,1.11767705]
[1718649060646,0.00611598,67091.0,67090.0,1.43578405]
[1718649060819,0.00611598,67091.0,67090.0,1.98108405]
[1718649061030,0.00611598,67091.0,67090.0,2.01508405]
[1718649061266,0.00611598,67091.0,67090.0,1.98108405]
[1718649061469,0.00611598,67091.0,67090.0,1.11767705]
[1718649061690,0.00611598,67091.0,67090.0,1.13167705]
[1718649062315,0.00611598,67091.0,67090.0,1.42978405]
[1718649062556,0.00611598,67091.0,67090.0,1.13167705]
[1718649062886,0.26221598,67091.0,67090.0,0.01568117]
[1718649063206,1.00747098,67091.0,67090.0,0.028]
[1718649063408,0.26221598,67091.0,67090.0,0.014]
[1718649063760,0.41126698,67091.0,67090.0,0.028]
[1718649063940,0.26221598,67091.0,67090.0,0.028]
[1718649064090,0.26221598,67091.0,67090.0,0.014]
[1718649064291,0.70936898,67091.0,67090.0,0.01568117]
[1718649064491,0.73544678,67091.0,67090.0,0.014]
[1718649064692,0.149056,67089.0,67078.0,0.29816]
[1718649064893,0.56031798,67091.0,67080.0,0.149074]
[1718649064894,0.149058,67088.0,67080.0,0.149074]
[1718649065136,0.56031798,67091.0,67082.0,0.14907]
[1718649065297,0.56031798,67091.0,67081.0,0.15272888]
[1718649065298,0.149066,67084.0,67083.0,0.00168117]
[1718649065482,0.405166,67084.0,67081.0,0.15272888]
[1718649065683,0.405166,67084.0,67082.0,0.00164171]
[1718649065684,0.2561,67084.0,67082.0,0.00164171]
[1718649065917,0.2561,67084.0,67081.0,0.15272888]
[1718649066130,0.298138,67083.0,67082.0,0.00164171]
[1718649066406,0.29814,67083.0,67073.0,0.07593072]
[1718649066606,0.298146,67082.0,67074.0,0.15272888]
[1718649066814,0.14908,67078.0,67074.0,0.15437686]
[1718649067014,0.298142,67082.0,67080.0,0.014]
[1718649067239,0.2561,67084.0,67080.0,0.014]
[1718649067240,0.447222,67081.0,67080.0,0.014]
[1718649067440,0.447222,67081.0,67074.0,0.15437686]
[1718649067441,0.2561,67084.0,67077.0,0.149081]
[1718649067711,0.2561,67084.0,67078.0,0.15272888]
[1718649067870,0.2561,67084.0,67078.0,0.15438028]
[1718649068176,0.2561,67084.0,67081.0,0.001]
[1718649068378,0.447207,67083.0,67081.0,0.001]
[1718649068590,1.001455,67082.0,67081.0,0.001]
[1718649068797,0.72332,67081.0,67080.0,0.001]
[1718649068997,1.319614,67081.0,67080.0,0.001]
[1718649069381,1.47234288,67081.0,67080.0,0.001]
[1718649069716,0.149122,67059.0,67054.0,0.01265075]
[1718649069910,0.149122,67060.0,67058.0,0.45558432]
[1718649070117,0.149122,67060.0,67055.0,0.00165718]
[1718649070318,0.2561,67061.0,67051.0,0.07593072]
[1718649070513,0.2561,67061.0,67056.0,0.00165718]
[1718649070820,0.2561,67061.0,67057.0,0.00165718]
[1718649071044,0.298241,67060.0,67057.0,0.00165718]
[1718649071249,0.2561,67061.0,67050.0,1.0]
[1718649071453,0.149122,67059.0,67058.0,0.00165718]
[1718649071648,0.149122,67059.0,67051.0,0.08993072]
[1718649072124,0.2561,67061.0,67057.0,0.014]
[1718649072326,0.149124,67058.0,67057.0,0.014]
[1718649072649,0.149124,67058.0,67057.0,0.00165718]
[1718649073109,0.14912,67060.0,67051.0,0.22906972]
[1718649073301,0.2561,67061.0,67060.0,0.44736]
[1718649073468,0.2561,67061.0,67060.0,0.14912]
[1718649073715,0.2561,67061.0,67051.0,0.2326596]
[1718649073716,0.001,67060.0,67057.0,0.011]
[1718649073906,0.001,67060.0,67051.0,0.2326596]
[1718649074059,0.2561,67061.0,67055.0,0.14913]
[1718649074260,0.003,67058.0,67055.0,0.14913]
[1718649074468,0.003,67058.0,67057.0,0.447379]
[1718649074646,0.2561,67061.0,67060.0,0.44736]
[1718649075037,0.2561,67061.0,67060.0,0.14912]
[1718649075239,0.2561,67061.0,67059.0,0.149121]
[1718649075638,0.1092,67065.0,67055.0,0.298262]
[1718649075947,0.003,67058.0,67057.0,0.149126]
[1718649076206,0.1092,67065.0,67059.0,0.149122]
[1718649076403,0.407418,67065.0,67052.0,0.2665]
[1718649076600,0.1092,67065.0,67054.0,0.298265]
[1718649076805,0.1092,67065.0,67058.0,0.149123]
[1718649077499,0.298199,67070.0,67057.0,0.298252]
[1718649077500,0.2561,67080.0,67064.0,0.02]
[1718649077724,0.2561,67080.0,67079.0,0.447232]
[1718649077966,0.2561,67080.0,67079.0,0.745387]
[1718649078187,0.1092,67089.0,67088.0,0.149057]
[1718649078352,0.1092,67089.0,67081.0,0.298145]
[1718649078609,0.1092,67089.0,67084.0,0.298133]
[1718649078779,0.1469,67090.0,67085.0,0.149064]
[1718649079052,0.295955,67090.0,67081.0,0.447215]
[1718649079261,0.14906,67087.0,67076.0,0.564669]
[1718649079449,0.1469,67090.0,67074.0,0.298174]
[1718649079450,0.2186924,67090.0,67074.0,0.298174]
[1718649079629,0.298125,67086.0,67074.0,0.298174]
[1718649079836,0.149066,67085.0,67070.0,0.2865]
[1718649079992,0.149067,67084.0,67081.0,0.002]
[1718649080194,0.149063,67086.0,67081.0,0.002]
[1718649080394,0.149071,67082.0,67074.0,0.149088]
[1718649080660,0.149071,67082.0,67071.0,0.15272888]
[1718649080661,0.149069,67083.0,67082.0,0.00171511]
[1718649080797,0.149078,67079.0,67071.0,0.30182288]
[1718649081001,0.1092,67077.0,67071.0,0.15272888]
[1718649081179,0.1092,67077.0,67065.0,0.298217]
[1718649081180,0.2561,67077.0,67072.0,0.00171511]
[1718649081387,0.149085,67076.0,67067.0,0.149102]
[1718649081580,0.2561,67077.0,67073.0,0.00171511]
[1718649081912,0.2561,67077.0,67074.0,0.00171511]
[1718649082118,0.405182,67077.0,67074.0,0.001]
[1718649082324,0.2561,67077.0,67075.0,0.00171511]
[1718649082547,0.14908,67078.0,67075.0,0.00171511]
[1718649082929,0.001,67077.0,67073.0,0.014]
[1718649083129,0.295976,67080.0,67074.0,0.00171511]
[1718649083330,0.149079,67079.0,67074.0,0.00171511]
[1718649083801,0.149084,67076.0,67075.0,0.014]
[1718649084104,0.447253,67076.0,67075.0,0.014]
[1718649084240,0.149084,67076.0,67075.0,0.014]
[1718649084444,0.447253,67076.0,67075.0,0.014]
[1718649084620,0.745422,67076.0,67075.0,0.014]
[1718649085267,0.447253,67076.0,67075.0,0.014]
[1718649085785,0.447253,67076.0,67066.0,0.22503572]
[1718649085786,0.149089,67074.0,67073.0,0.013]
[1718649085997,0.149089,67074.0,67066.0,0.22503572]
[1718649086222,0.556446,67078.0,67066.0,0.07593072]
[1718649086396,0.001,67076.0,67075.0,0.013]
[1718649086596,0.001,67076.0,67075.0,0.027]
[1718649086800,0.001,67076.0,67075.0,0.014]
[1718649087003,0.001,67076.0,67075.0,1.05932011]
[1718649087179,0.001,67076.0,67075.0,1.61352011]
[1718649087751,0.001,67076.0,67075.0,1.63352011]
[1718649088013,0.001,67076.0,67075.0,2.00424899]
[1718649088228,0.001,67076.0,67075.0,1.98424899]
[1718649088724,0.149055,67090.0,67082.0,0.14907]
[1718649088942,0.149059,67088.0,67079.0,0.149075]
[1718649089197,0.14906,67087.0,67079.0,0.149075]
[1718649089405,0.298123,67087.0,67080.0,0.00165818]
[1718649089631,0.149061,67087.0,67080.0,0.15073218]
[1718649089849,0.149061,67087.0,67080.0,0.149074]
[1718649090112,0.03954848,67087.0,67081.0,0.00165818]
[1718649090346,0.447213,67082.0,67081.0,0.00165818]
[1718649090557,0.298142,67082.0,67075.0,0.014]
[1718649090806,0.149075,67080.0,67076.0,0.00159441]
[1718649090998,0.149068,67084.0,67076.0,0.00159441]
[1718649091196,0.149064,67085.0,67077.0,0.14908]
[1718649091441,0.298109,67090.0,67081.0,0.149072]
[1718649091644,0.26436798,67091.0,67083.0,0.149068]
[1718649091854,0.11531598,67091.0,67087.0,0.149058]
[1718649092053,0.014,67090.0,67089.0,0.149055]
[1718649092192,0.00611598,67091.0,67090.0,0.149053]
[1718649092402,0.00611598,67091.0,67090.0,0.44716]
[1718649092603,0.00611598,67091.0,67090.0,0.4487604]
[1718649092808,0.00611598,67091.0,67090.0,0.7468674]
[1718649093099,0.01211598,67091.0,67090.0,0.7468674]
[1718649093614,0.00611598,67091.0,67090.0,0.7468674]
[1718649094036,0.00611598,67091.0,67090.0,0.89959628]
[1718649094460,0.00611598,67091.0,67090.0,1.21770328]
[1718649094842,0.00611598,67091.0,67090.0,1.19770328]
[1718649095061,0.00611598,67091.0,67090.0,1.21770328]
[1718649095933,0.01111598,67091.0,67090.0,1.21770328]
[1718649096070,0.00611598,67091.0,67090.0,2.29431028]
[1718649096469,0.00711598,67091.0,67090.0,2.01020328]
[1718649096681,0.00711598,67091.0,67090.0,2.02420328]
[1718649097082,0.00711598,67091.0,67090.0,2.01020328]
[1718649097465,0.00611598,67091.0,67090.0,1.99620328]
[1718649097670,0.00611598,67091.0,67090.0,2.02420328]
[1718649097671,0.00711598,67091.0,67090.0,2.02420328]
[1718649098384,0.00711598,67091.0,67090.0,2.32231028]
[1718649098700,0.00711598,67091.0,67090.0,2.02420328]
[1718649098928,0.00611598,67091.0,67090.0,2.01020328]
[1718649099346,0.00711598,67091.0,67090.0,2.02420328]
[1718649099682,0.00711598,67091.0,67090.0,1.99620328]
[1718649100527,0.00811598,67091.0,67090.0,2.01020328]
[1718649101160,0.00811598,67091.0,67090.0,2.30831028]
[1718649101338,0.00811598,67091.0,67090.0,2.41031028]
[1718649101576,0.00611598,67091.0,67090.0,2.41031028]
[1718649101803,0.00611598,67091.0,67090.0,2.30831028]
[1718649102014,0.00611598,67091.0,67090.0,2.41031028]
[1718649102371,0.00611598,67091.0,67090.0,2.30831028]
[1718649103054,0.00711598,67091.0,67090.0,2.42431028]
[1718649103260,0.00711598,67091.0,67090.0,2.41031028]
[1718649103713,0.00855,67092.0,67091.0,0.321051]
[1718649103939,0.01355,67121.0,67112.0,0.169004]
[1718649104144,0.01355,67121.0,67112.0,1.71785088]
[1718649104363,0.01355,67121.0,67117.0,0.916967]
[1718649104543,0.01355,67121.0,67120.0,0.966932]
[1718649104760,0.01355,67121.0,67120.0,2.64024792]
[1718649104968,0.01355,67121.0,67120.0,2.68922165]
[1718649105130,0.01355,67121.0,67120.0,2.68768061]
[1718649106095,0.01355,67121.0,67120.0,2.58568061]
[1718649106304,0.01355,67121.0,67120.0,0.73482888]
[1718649106534,0.01355,67121.0,67120.0,1.39978788]
[1718649106775,0.01355,67121.0,67120.0,1.69776088]
[1718649106976,0.01355,67121.0,67120.0,1.71176088]
[1718649107186,0.01355,67121.0,67120.0,0.76282888]
[1718649107392,0.01355,67121.0,67120.0,0.014]
[1718649107850,0.01355,67121.0,67120.0,0.028]
[1718649108265,0.01355,67121.0,67110.0,0.01265075]
[1718649108472,0.148994,67117.0,67110.0,0.16537963]
[1718649108681,0.01355,67121.0,67110.0,0.01265075]
[1718649108898,0.297982,67119.0,67103.0,0.218]
[1718649109108,0.01355,67121.0,67113.0,0.07593072]
[1718649109724,0.148987,67120.0,67113.0,0.07593072]
[1718649110351,0.01355,67121.0,67113.0,0.07593072]
[1718649110639,0.01355,67121.0,67120.0,0.07593072]
[1718649110855,0.01355,67121.0,67120.0,0.37390372]
[1718649111044,0.01355,67121.0,67120.0,1.1915916]
[1718649111265,0.01355,67121.0,67120.0,1.2055916]
[1718649111751,0.01355,67121.0,67120.0,1.1915916]
[1718649111960,0.01355,67121.0,67120.0,1.2125916]
[1718649112163,0.01355,67121.0,67120.0,1.5105646]
[1718649112545,0.01355,67121.0,67120.0,1.4905646]
[1718649112763,0.01355,67121.0,67120.0,1.2125916]
[1718649112956,0.01355,67121.0,67120.0,1.2115916]
[1718649113138,0.01355,67121.0,67120.0,1.1925916]
[1718649113341,0.01355,67121.0,67120.0,1.4905646]
[1718649113710,0.01355,67121.0,67120.0,1.4895646]
[1718649114036,0.01355,67121.0,67120.0,1.4905646]
[1718649114289,0.00855,67130.0,67120.0,1.4905646]
[1718649114290,1.73162587,67191.0,67190.0,7.03970255]
[1718649114482,1.73162587,67191.0,67120.0,0.001]
[1718649114483,0.148984,67121.0,67120.0,0.001]
[1718649114701,0.744922,67121.0,67120.0,0.001]
[1718649114932,0.744922,67121.0,67120.0,0.014]
[1718649115328,1.19560356,67121.0,67120.0,0.028]
[1718649115756,2.28442356,67121.0,67120.0,0.028]
[1718649115961,0.745032,67111.0,67110.0,1.2]
[1718649116138,1.043045,67111.0,67110.0,1.2]
[1718649116351,0.447019,67111.0,67110.0,1.2]
[1718649116549,1.23787,67111.0,67110.0,1.2]
[1718649116753,0.447019,67111.0,67110.0,1.2]
[1718649116966,1.535883,67111.0,67110.0,1.2]
[1718649117154,1.535883,67111.0,67110.0,1.195]
[1718649117155,1.23787,67111.0,67110.0,1.195]
[1718649117358,1.535883,67111.0,67110.0,1.195]
[1718649117556,1.39058256,67111.0,67110.0,1.195]
[1718649117765,1.23787,67111.0,67110.0,1.209]
[1718649117941,1.535883,67111.0,67110.0,1.209]
[1718649118619,1.536883,67111.0,67110.0,1.223]
[1718649118937,1.834896,67111.0,67110.0,1.223]
[1718649119583,3.72139588,67111.0,67110.0,1.209]
[1718649119797,1.63911644,67111.0,67110.0,1.209]
[1718649120011,4.50547844,67111.0,67110.0,1.209]
[1718649120233,0.115,67111.0,67110.0,1.209]
[1718649120442,1.35287,67111.0,67110.0,1.209]
[1718649120652,0.846032,67111.0,67110.0,1.209]
[1718649121052,2.52163788,67111.0,67110.0,1.195]
[1718649121316,1.522311,67111.0,67110.0,1.195]
[1718649121558,1.33787,67111.0,67110.0,1.195]
[1718649121755,1.635883,67111.0,67110.0,1.195]
[1718649121971,1.053857,67111.0,67110.0,1.196]
[1718649122186,0.904851,67111.0,67110.0,1.196]
[1718649122396,0.890851,67111.0,67110.0,1.195]
[1718649122785,0.890851,67111.0,67110.0,1.196]
[1718649122786,0.804851,67111.0,67110.0,1.196]
[1718649122997,0.3345,67122.0,67110.0,1.196]
[1718649122998,0.1,67121.0,67110.0,0.001]
[1718649123153,0.148996,67116.0,67115.0,0.07593072]
[1718649123365,0.1,67116.0,67115.0,0.07593072]
[1718649123563,0.01867448,67123.0,67115.0,0.07593072]
[1718649123765,0.297948,67126.0,67115.0,0.07593072]
[1718649123766,0.08963,67131.0,67122.0,0.07593072]
[1718649124132,0.297941,67128.0,67122.0,0.07593072]
[1718649124332,0.148979,67124.0,67122.0,0.07593072]
[1718649124498,0.148979,67124.0,67115.0,0.07593072]
[1718649124499,0.1,67126.0,67115.0,0.07593072]
[1718649124702,0.162995,67116.0,67115.0,0.001]
[1718649124898,0.771977,67116.0,67115.0,0.002]
[1718649125235,0.771977,67116.0,67099.0,0.318063]
[1718649125236,0.311991,67116.0,67099.0,0.318063]
[1718649125372,0.311991,67116.0,67100.0,0.02]
[1718649125373,0.149017,67106.0,67100.0,0.02]
[1718649125579,0.298004,67114.0,67100.0,0.02]
[1718649125580,0.29802,67110.0,67100.0,0.02]
[1718649125805,0.149003,67113.0,67100.0,0.02]
[1718649125974,0.08963,67123.0,67100.0,0.02]
[1718649126175,0.447006,67113.0,67112.0,0.07593072]
[1718649126475,0.74501,67113.0,67112.0,0.07593072]
[1718649126618,0.5228057,67113.0,67112.0,0.07593072]
[1718649126838,0.013,67116.0,67112.0,0.07593072]
[1718649127050,0.013,67116.0,67115.0,0.148997]
[1718649127254,0.013,67116.0,67115.0,0.168997]
[1718649127454,0.013,67116.0,67112.0,0.07593072]
[1718649127455,0.013,67116.0,67113.0,0.02]
[1718649127655,0.148982,67122.0,67113.0,0.02]
[1718649127859,0.14898,67123.0,67120.0,0.07593072]
[1718649128018,0.397954,67125.0,67120.0,0.07593072]
[1718649128019,0.1,67125.0,67120.0,0.07593072]
[1718649128224,0.33956333,67125.0,67120.0,0.07593072]
[1718649128428,0.248978,67124.0,67120.0,0.07593072]
[1718649128677,0.1,67124.0,67120.0,0.07593072]
[1718649129005,0.013,67122.0,67120.0,0.07593072]
[1718649129328,0.013,67122.0,67121.0,0.148984]
[1718649129540,0.1,67135.0,67125.0,0.02]
[1718649129745,0.01,67135.0,67130.0,0.07593072]
[1718649129957,0.01851267,67139.0,67130.0,0.07593072]
[1718649130172,0.6685,67143.0,67130.0,0.07593072]
[1718649130373,0.15272888,67142.0,67130.0,0.07593072]
[1718649130595,0.333,67152.0,67137.0,0.07593072]
[1718649130790,0.148923,67149.0,67137.0,0.07593072]
[1718649130991,0.24597717,67148.0,67137.0,0.07593072]
[1718649131216,0.333,67152.0,67144.0,0.07593072]
[1718649131488,0.08,67160.0,67137.0,0.37382772]
[1718649131489,0.08,67160.0,67145.0,0.07593072]
[1718649131703,0.148914,67153.0,67145.0,0.07593072]
[1718649131906,0.148922,67149.0,67145.0,0.07593072]
[1718649132099,0.148922,67149.0,67137.0,0.24487872]
[1718649132100,0.148922,67149.0,67137.0,0.24587872]
[1718649132308,0.148923,67149.0,67137.0,0.07693072]
[1718649132509,0.1,67156.0,67137.0,0.07593072]
[1718649132510,0.148937,67143.0,67137.0,0.07593072]
[1718649132722,0.14893,67146.0,67137.0,0.09593072]
[1718649132950,0.148929,67146.0,67145.0,0.001]
[1718649133190,0.1,67156.0,67145.0,0.001]
[1718649133191,0.297819,67155.0,67145.0,0.001]
[1718649133348,0.148929,67146.0,67145.0,0.001]
[1718649133805,0.446787,67146.0,67145.0,0.001]
[1718649134018,0.22674667,67154.0,67145.0,0.001]
[1718649134315,0.297836,67151.0,67137.0,0.07593072]
[1718649134517,0.148923,67149.0,67144.0,0.001]
[1718649134663,0.148925,67148.0,67144.0,0.001]
[1718649135070,0.148925,67148.0,67137.0,0.09593072]
[1718649135424,0.148946,67138.0,67137.0,0.001]
[1718649135744,0.148955,67135.0,67129.0,0.07593072]
[1718649135924,0.148955,67134.0,67129.0,0.07593072]
[1718649136123,0.148961,67132.0,67124.0,0.3259]
[1718649136463,0.18396717,67132.0,67127.0,0.07593072]
[1718649136723,0.148957,67134.0,67127.0,0.07593072]
[1718649136930,0.148956,67134.0,67127.0,0.07593072]
[1718649137131,0.297898,67138.0,67127.0,0.07593072]
[1718649137347,0.15272888,67137.0,67120.0,0.07593072]
[1718649137554,0.148982,67122.0,67120.0,0.07593072]
[1718649137969,0.148979,67124.0,67120.0,0.07593072]
[1718649138578,0.14898,67123.0,67120.0,0.07593072]
[1718649138780,0.148976,67125.0,67120.0,0.08893072]
[1718649139134,0.148976,67125.0,67120.0,0.08993072]
[1718649139135,0.001,67122.0,67120.0,0.08993072]
[1718649139336,0.001,67122.0,67120.0,0.10393072]
[1718649139540,0.297938,67128.0,67120.0,0.08993072]
[1718649139741,0.01854557,67132.0,67120.0,0.07593072]
[1718649139980,0.1,67133.0,67120.0,0.07593072]
[1718649140186,0.297948,67126.0,67120.0,0.07593072]
[1718649140340,0.297936,67129.0,67120.0,0.07593072]
[1718649140556,0.08963,67135.0,67120.0,0.07593072]
[1718649140742,0.1,67132.0,67120.0,0.07593072]
[1718649140945,0.148971,67127.0,67120.0,0.07593072]
[1718649141150,0.001,67125.0,67120.0,0.08993072]
[1718649141790,0.1,67129.0,67120.0,0.07593072]
[1718649142014,0.1,67129.0,67120.0,0.08993072]
[1718649142237,0.1,67129.0,67128.0,0.07593072]
[1718649142629,0.1,67136.0,67133.0,0.148957]
[1718649142773,0.333,67148.0,67136.0,0.02]
[1718649142973,0.15272888,67147.0,67136.0,0.14895]
[1718649143201,0.35159685,67148.0,67142.0,0.07593072]
[1718649143401,0.01859685,67148.0,67142.0,0.07593072]
[1718649143607,0.00085,67151.0,67142.0,0.07593072]
[1718649143968,0.0447587,67150.0,67142.0,0.07593072]
[1718649144363,0.00085,67151.0,67142.0,0.07593072]
[1718649144572,0.00085,67151.0,67142.0,0.09593072]
[1718649144975,0.00085,67151.0,67143.0,0.148933]
[1718649145209,0.001,67148.0,67147.0,0.297853]
[1718649145413,0.001,67148.0,67144.0,0.02]
[1718649145638,0.001,67148.0,67144.0,0.317865]
[1718649145837,0.001,67148.0,67145.0,0.148931]
[1718649146440,0.001,67148.0,67147.0,0.148926]
[1718649146600,0.00085,67151.0,67148.0,0.148923]
[1718649147224,0.00085,67151.0,67145.0,0.148929]
[1718649147593,0.00085,67151.0,67144.0,0.02]
[1718649147789,0.00085,67151.0,67146.0,0.02]
[1718649148109,0.00085,67151.0,67147.0,0.02]
[1718649148310,0.00085,67151.0,67148.0,0.317848]
[1718649148686,0.00085,67151.0,67147.0,0.02]
[1718649148894,0.00085,67151.0,67144.0,0.002]
[1718649149186,0.00085,67151.0,67143.0,0.2509]
[1718649149417,0.01385,67151.0,67147.0,0.002]
[1718649149733,0.01385,67151.0,67147.0,0.001]
[1718649150372,0.00085,67151.0,67146.0,0.02]
[1718649150616,0.00085,67151.0,67144.0,0.149932]
[1718649150974,0.00085,67151.0,67147.0,0.148926]
[1718649151441,0.00085,67151.0,67145.0,0.168931]
[1718649151885,0.00085,67151.0,67146.0,0.148929]
[1718649152036,0.00085,67151.0,67146.0,0.168929]
[1718649152037,0.01385,67151.0,67146.0,0.168929]
[1718649152239,0.01385,67151.0,67148.0,0.02]
[1718649152444,0.01385,67151.0,67144.0,0.021]
[1718649152604,0.01385,67151.0,67147.0,0.001]
[1718649152816,0.01385,67151.0,67147.0,0.148926]
[1718649153032,0.00085,67151.0,67146.0,0.02]
[1718649153258,0.00085,67151.0,67147.0,0.148925]
[1718649153411,0.01385,67151.0,67146.0,0.297856]
[1718649153625,0.01385,67151.0,67150.0,0.14892]
[1718649153831,0.01385,67151.0,67146.0,0.148928]
[1718649154259,0.01385,67151.0,67145.0,0.001]
[1718649154451,0.01385,67151.0,67150.0,0.14892]
[1718649154802,0.00085,67151.0,67145.0,0.14893]
[1718649155009,0.00085,67151.0,67147.0,0.148925]
[1718649155213,0.00085,67151.0,67147.0,0.001]
[1718649155382,0.00085,67151.0,67146.0,0.148927]
[1718649155801,0.00085,67151.0,67150.0,0.001]
[1718649155956,0.00085,67151.0,67145.0,0.297859]
[1718649156177,0.01385,67151.0,67146.0,0.001]
[1718649156532,0.01385,67151.0,67147.0,0.001]
[1718649156683,0.00085,67151.0,67146.0,0.148929]
[1718649156860,0.01385,67151.0,67146.0,0.001]
[1718649157461,0.00085,67151.0,67145.0,0.148931]
[1718649157663,0.00085,67151.0,67149.0,0.297843]
[1718649157873,0.01385,67151.0,67150.0,0.46676]
[1718649158097,0.01385,67151.0,67150.0,0.7646]
[1718649158484,0.01385,67151.0,67150.0,0.16992]
[1718649158685,0.01385,67151.0,67148.0,0.02]
[1718649158863,0.01385,67151.0,67147.0,0.001]
[1718649159061,0.01385,67151.0,67149.0,0.001]
[1718649159267,0.00085,67151.0,67149.0,0.148922]
[1718649159488,0.00085,67151.0,67148.0,0.168923]
[1718649159686,0.01385,67151.0,67150.0,0.001]
[1718649159984,0.01385,67151.0,67148.0,0.168923]
[1718649160129,0.00085,67151.0,67149.0,0.148922]
[1718649160537,0.00085,67151.0,67149.0,0.001]
[1718649160538,0.01385,67151.0,67149.0,0.001]
[1718649160749,0.0301262,67151.0,67149.0,0.001]
[1718649160934,0.44676,67150.0,67149.0,0.001]
[1718649161136,0.148951,67136.0,67127.0,0.00017932]
[1718649161351,1.44787188,67150.0,67128.0,0.53151504]
[1718649161352,0.0895,67148.0,67128.0,0.53151504]
[1718649161578,0.0895,67146.0,67131.0,0.02]
[1718649161748,0.15272888,67146.0,67139.0,0.148943]
[1718649161949,0.1,67149.0,67142.0,0.07593072]
[1718649162154,0.1,67149.0,67144.0,0.02]
[1718649162373,0.1,67149.0,67142.0,0.09593072]
[1718649162640,0.00085,67151.0,67149.0,0.001]
[1718649163054,0.014,67150.0,67149.0,0.001]
[1718649163372,0.00085,67151.0,67149.0,0.001]
[1718649163574,0.00085,67151.0,67146.0,0.148928]
[1718649163776,0.01,67149.0,67145.0,0.02]
[1718649163989,0.01,67149.0,67145.0,0.317861]
[1718649164213,0.01,67149.0,67145.0,0.168929]